[Event "Early-Titled-Tuesday-Blitz-April-23-2024"]
[Site "Chess.com"]
[Date "2024.04.23"]
[Round "7"]
[White "DumbKing75"]
[Black "L4ncer"]
[Result "1-0"]
[WhiteElo "2646"]
[BlackElo "2366"]
[TimeControl "180+1"]
[EndTime "9:20:37 PDT"]
[Termination "DumbKing75 won on time"]

1. e4 {[%clk 0:03:00.9]} 1... g6 {[%clk 0:02:58.8]} 2. d4 {[%clk 0:03:00.7]}
2... Bg7 {[%clk 0:02:59.1]} 3. Nf3 {[%clk 0:03:01.6]} 3... d6 {[%clk 0:02:59.5]}
4. Be2 {[%clk 0:03:01.1]} 4... Nd7 {[%clk 0:02:58.5]} 5. O-O {[%clk 0:03:01.6]}
5... Ngf6 {[%clk 0:02:57.5]} 6. Nc3 {[%clk 0:03:00.8]} 6... O-O {[%clk
0:02:56.5]} 7. e5 {[%clk 0:02:51.8]} 7... dxe5 {[%clk 0:02:51.6]} 8. dxe5 {[%clk
0:02:52.7]} 8... Ng4 {[%clk 0:02:51.8]} 9. e6 {[%clk 0:02:44.7]} 9... fxe6
{[%clk 0:02:48.2]} 10. Ng5 {[%clk 0:02:32.7]} 10... Nxf2 {[%clk 0:02:04.4]} 11.
Rxf2 {[%clk 0:02:29.1]} 11... Rxf2 {[%clk 0:02:01.4]} 12. Kxf2 {[%clk 0:02:30]}
12... Qf8+ {[%clk 0:02:00.4]} 13. Kg1 {[%clk 0:02:25.4]} 13... Nc5 {[%clk
0:01:57.6]} 14. Be3 {[%clk 0:02:21.2]} 14... b6 {[%clk 0:01:56.6]} 15. Bc4
{[%clk 0:02:12.3]} 15... Qf5 {[%clk 0:01:52.6]} 16. Qf3 {[%clk 0:02:04.9]} 16...
Qxf3 {[%clk 0:01:42.4]} 17. gxf3 {[%clk 0:02:05.2]} 17... h6 {[%clk 0:01:37.8]}
18. Bxc5 {[%clk 0:02:01.4]} 18... hxg5 {[%clk 0:01:37.3]} 19. Bxe7 {[%clk
0:01:57.3]} 19... Bb7 {[%clk 0:01:33.8]} 20. Re1 {[%clk 0:01:49.1]} 20... Bxc3
{[%clk 0:01:29.3]} 21. bxc3 {[%clk 0:01:50]} 21... Bxf3 {[%clk 0:01:27.1]} 22.
Rxe6 {[%clk 0:01:45.1]} 22... g4 {[%clk 0:01:18.5]} 23. Rxg6+ {[%clk 0:01:41.6]}
23... Kh7 {[%clk 0:01:18.8]} 24. Bd3 {[%clk 0:01:40.8]} 24... Re8 {[%clk
0:01:08.9]} 25. Rxg4+ {[%clk 0:01:26.5]} 25... Kh6 {[%clk 0:01:08.2]} 26. Rg6+
{[%clk 0:01:14]} 26... Kh5 {[%clk 0:01:06.8]} 27. Rg5+ {[%clk 0:01:13.4]} 27...
Kh6 {[%clk 0:01:06.4]} 28. Bf6 {[%clk 0:01:07.9]} 28... Re6 {[%clk 0:00:53]} 29.
Rg6+ {[%clk 0:00:53]} 29... Kh5 {[%clk 0:00:52.8]} 30. Kf2 {[%clk 0:00:40.3]}
30... Bc6 {[%clk 0:00:34]} 31. Rg5+ {[%clk 0:00:37.3]} 31... Kh6 {[%clk
0:00:33.9]} 32. Rf5 {[%clk 0:00:36.7]} 32... Be4 {[%clk 0:00:19.6]} 33. Bxe4
{[%clk 0:00:31.6]} 33... Rxe4 {[%clk 0:00:20.5]} 34. Bd4 {[%clk 0:00:25.7]}
34... c5 {[%clk 0:00:17.4]} 35. Be3+ {[%clk 0:00:24.6]} 35... Kg6 {[%clk
0:00:16.7]} 36. Rf4 {[%clk 0:00:24.7]} 36... Re7 {[%clk 0:00:14.9]} 37. c4
{[%clk 0:00:23.9]} 37... Rh7 {[%clk 0:00:13.8]} 38. h4 {[%clk 0:00:24]} 38...
Rd7 {[%clk 0:00:13.1]} 39. Rg4+ {[%clk 0:00:20.2]} 39... Kh5 {[%clk 0:00:11.4]}
40. Re4 {[%clk 0:00:19.9]} 40... Rd1 {[%clk 0:00:11.1]} 41. Re7 {[%clk
0:00:16.7]} 41... a5 {[%clk 0:00:06.9]} 42. Rh7+ {[%clk 0:00:16.8]} 42... Kg6
{[%clk 0:00:06.7]} 43. Rh6+ {[%clk 0:00:17]} 43... Kf5 {[%clk 0:00:07]} 44. Rxb6
{[%clk 0:00:17.2]} 44... Ra1 {[%clk 0:00:05.8]} 45. Rb2 {[%clk 0:00:15.5]} 45...
a4 {[%clk 0:00:05.7]} 46. Bxc5 {[%clk 0:00:15.5]} 46... Rh1 {[%clk 0:00:04.1]}
47. Kg3 {[%clk 0:00:12.9]} 47... Ke4 {[%clk 0:00:02.3]} 48. Rb4 {[%clk
0:00:10.4]} 48... Rc1 {[%clk 0:00:02.2]} 49. Rxa4 {[%clk 0:00:10.4]} 49... Rxc2
{[%clk 0:00:02.7]} 50. Bf2 {[%clk 0:00:10.7]} 1-0

[Event "Early-Titled-Tuesday-Blitz-April-23-2024"]
[Site "Chess.com"]
[Date "2024.04.23"]
[Round "7"]
[White "ccccvhhhj"]
[Black "yaguigor"]
[Result "1-0"]
[WhiteElo "2470"]
[BlackElo "2590"]
[TimeControl "180+1"]
[EndTime "9:20:37 PDT"]
[Termination "ccccvhhhj won on time"]

1. e4 {[%clk 0:03:00.9]} 1... e5 {[%clk 0:02:58.8]} 2. Nf3 {[%clk 0:03:01.4]}
2... Nc6 {[%clk 0:02:58.5]} 3. d4 {[%clk 0:03:02.1]} 3... exd4 {[%clk
0:02:58.1]} 4. Nxd4 {[%clk 0:03:03]} 4... Bc5 {[%clk 0:02:56.9]} 5. Nb3 {[%clk
0:03:02.9]} 5... Bb6 {[%clk 0:02:56.5]} 6. Nc3 {[%clk 0:03:03.6]} 6... Nf6
{[%clk 0:02:55.6]} 7. Qe2 {[%clk 0:03:04.2]} 7... O-O {[%clk 0:02:54.4]} 8. Be3
{[%clk 0:03:04.9]} 8... Re8 {[%clk 0:02:48.9]} 9. f3 {[%clk 0:03:04.9]} 9... d5
{[%clk 0:02:31.7]} 10. O-O-O {[%clk 0:03:03.9]} 10... d4 {[%clk 0:02:00.6]} 11.
Bg5 {[%clk 0:03:01.3]} 11... Be6 {[%clk 0:01:58.1]} 12. Nb5 {[%clk 0:02:18.4]}
12... Bxb3 {[%clk 0:01:38]} 13. cxb3 {[%clk 0:02:18.5]} 13... Qe7 {[%clk
0:01:34.5]} 14. Kb1 {[%clk 0:02:10]} 14... Qe5 {[%clk 0:01:19.8]} 15. Qd2 {[%clk
0:02:10.3]} 15... a6 {[%clk 0:01:08.9]} 16. Na3 {[%clk 0:01:58.9]} 16... Ba5
{[%clk 0:01:05.3]} 17. Qc1 {[%clk 0:01:48.6]} 17... Bb4 {[%clk 0:00:59.4]} 18.
Nc4 {[%clk 0:01:47.3]} 18... Qe6 {[%clk 0:00:58.6]} 19. h4 {[%clk 0:01:20.4]}
19... Nd7 {[%clk 0:00:55.6]} 20. g3 {[%clk 0:01:04]} 20... Nde5 {[%clk
0:00:29.8]} 21. Bh3 {[%clk 0:01:03.3]} 21... f5 {[%clk 0:00:21.1]} 22. Bxf5
{[%clk 0:01:02]} 22... Qf7 {[%clk 0:00:21.1]} 23. Nxe5 {[%clk 0:00:45.8]} 23...
Nxe5 {[%clk 0:00:20.5]} 24. Rxd4 {[%clk 0:00:23.6]} 24... c5 {[%clk 0:00:16]}
25. Rd5 {[%clk 0:00:14.9]} 25... g6 {[%clk 0:00:14.1]} 26. Bh3 {[%clk
0:00:11.7]} 26... Qxf3 {[%clk 0:00:13.5]} 27. Rf1 {[%clk 0:00:04.3]} 27... Qxe4+
{[%clk 0:00:13.5]} 28. Ka1 {[%clk 0:00:04.9]} 28... Nd3 {[%clk 0:00:09.2]} 29.
Qc4 {[%clk 0:00:03.9]} 29... Qxc4 {[%clk 0:00:08.4]} 30. bxc4 {[%clk 0:00:04.8]}
30... Re1+ {[%clk 0:00:05.5]} 31. Rxe1 {[%clk 0:00:04.9]} 31... Nxe1 {[%clk
0:00:06.4]} 32. Be6+ {[%clk 0:00:05.4]} 32... Kg7 {[%clk 0:00:06]} 33. Bf4
{[%clk 0:00:05.1]} 33... Re8 {[%clk 0:00:03.1]} 34. Be5+ {[%clk 0:00:04.2]}
34... Kf8 {[%clk 0:00:03.7]} 35. Bd6+ {[%clk 0:00:04.3]} 35... Kg7 {[%clk
0:00:02.7]} 36. Be5+ {[%clk 0:00:04.8]} 36... Kf8 {[%clk 0:00:03.1]} 37. Bd6+
{[%clk 0:00:03.9]} 37... Kg7 {[%clk 0:00:03.4]} 38. Bg4 {[%clk 0:00:03.3]} 38...
Nc2+ {[%clk 0:00:02.5]} 39. Kb1 {[%clk 0:00:04.1]} 39... Nd4 {[%clk 0:00:02.8]}
40. a3 {[%clk 0:00:04.8]} 40... Re1+ {[%clk 0:00:02.5]} 41. Ka2 {[%clk
0:00:05.5]} 41... Bd2 {[%clk 0:00:02.3]} 42. Be5+ {[%clk 0:00:06.1]} 42... Kf7
{[%clk 0:00:01.9]} 43. Rxc5 {[%clk 0:00:05.4]} 43... Nc6 {[%clk 0:00:01.1]} 44.
Bc3 {[%clk 0:00:05.2]} 44... Be3 {[%clk 0:00:01.5]} 45. Rd5 {[%clk 0:00:05]}
45... Bb6 {[%clk 0:00:01.4]} 46. Rd7+ {[%clk 0:00:05.5]} 46... Ke8 {[%clk
0:00:02.2]} 47. Rxb7 {[%clk 0:00:06.4]} 1-0

[Event "Early-Titled-Tuesday-Blitz-April-23-2024"]
[Site "Chess.com"]
[Date "2024.04.23"]
[Round "7"]
[White "2Coaches1Profile"]
[Black "Attacker88"]
[Result "1-0"]
[WhiteElo "2561"]
[BlackElo "2386"]
[TimeControl "180+1"]
[EndTime "9:20:37 PDT"]
[Termination "2Coaches1Profile won by resignation"]

1. e4 {[%clk 0:03:00.8]} 1... c5 {[%clk 0:02:56.3]} 2. c3 {[%clk 0:03:00.8]}
2... d5 {[%clk 0:02:56.1]} 3. exd5 {[%clk 0:03:01.7]} 3... Qxd5 {[%clk
0:02:56.3]} 4. d4 {[%clk 0:03:02.3]} 4... Nc6 {[%clk 0:02:56.9]} 5. Nf3 {[%clk
0:03:02.6]} 5... Bf5 {[%clk 0:02:57.2]} 6. dxc5 {[%clk 0:03:02.9]} 6... Qxd1+
{[%clk 0:02:56.7]} 7. Kxd1 {[%clk 0:03:03.8]} 7... Nf6 {[%clk 0:02:54.6]} 8. b4
{[%clk 0:02:59.4]} 8... a5 {[%clk 0:02:26.8]} 9. b5 {[%clk 0:02:43.1]} 9... Nd8
{[%clk 0:02:26]} 10. Nd4 {[%clk 0:02:41.5]} 10... Bd7 {[%clk 0:02:23.4]} 11. Be3
{[%clk 0:02:34.4]} 11... Ng4 {[%clk 0:02:17.8]} 12. c6 {[%clk 0:02:26.1]} 12...
bxc6 {[%clk 0:02:11.7]} 13. bxc6 {[%clk 0:02:27]} 13... Nxc6 {[%clk 0:02:05.4]}
14. Bb5 {[%clk 0:02:26.8]} 14... Nxe3+ {[%clk 0:02:01.1]} 15. fxe3 {[%clk
0:02:27.7]} 15... Rc8 {[%clk 0:01:50.2]} 16. Nd2 {[%clk 0:02:21.6]} 16... e5
{[%clk 0:01:46.3]} 17. Nxc6 {[%clk 0:02:12.8]} 17... Bxc6 {[%clk 0:01:45.9]} 18.
Bxc6+ {[%clk 0:02:12.7]} 18... Rxc6 {[%clk 0:01:46.1]} 19. Rb1 {[%clk
0:02:05.9]} 19... Bd6 {[%clk 0:01:36]} 20. Ne4 {[%clk 0:02:05.5]} 20... O-O
{[%clk 0:01:19.5]} 21. Ke2 {[%clk 0:01:48.9]} 21... Bb8 {[%clk 0:00:49.3]} 22.
g4 {[%clk 0:01:46.4]} 22... Rc4 {[%clk 0:00:34.5]} 23. Kd3 {[%clk 0:01:41.9]}
23... Ra4 {[%clk 0:00:33.3]} 24. Nc5 {[%clk 0:01:13.1]} 24... Rd8+ {[%clk
0:00:26]} 25. Kc2 {[%clk 0:01:08.7]} 25... Rxa2+ {[%clk 0:00:26.1]} 26. Rb2
{[%clk 0:01:07.6]} 26... Rxb2+ {[%clk 0:00:25.9]} 27. Kxb2 {[%clk 0:01:08.5]}
27... Ba7 {[%clk 0:00:25.4]} 28. Ne4 {[%clk 0:01:05.9]} 28... Bxe3 {[%clk
0:00:24.8]} 29. Ra1 {[%clk 0:01:03.2]} 29... Bb6 {[%clk 0:00:24.6]} 30. Kb3
{[%clk 0:01:03]} 30... f6 {[%clk 0:00:19.3]} 31. Kc4 {[%clk 0:01:02.5]} 31...
Kf7 {[%clk 0:00:18.2]} 32. Kb5 {[%clk 0:01:03.1]} 32... Rb8 {[%clk 0:00:14.2]}
33. Kc6 {[%clk 0:00:59.3]} 33... Kg6 {[%clk 0:00:12.9]} 34. c4 {[%clk
0:00:56.5]} 34... f5 {[%clk 0:00:07.3]} 35. gxf5+ {[%clk 0:00:56.3]} 35... Kxf5
{[%clk 0:00:08.2]} 36. Nd6+ {[%clk 0:00:56]} 36... Kf4 {[%clk 0:00:08.7]} 37. c5
{[%clk 0:00:50.7]} 37... Bd8 {[%clk 0:00:08.4]} 38. Rf1+ {[%clk 0:00:48.8]}
38... Ke3 {[%clk 0:00:08.4]} 39. Re1+ {[%clk 0:00:46.3]} 39... Kf4 {[%clk
0:00:08]} 40. Re4+ {[%clk 0:00:46.2]} 40... Kf3 {[%clk 0:00:07.5]} 41. Rxe5
{[%clk 0:00:45.8]} 41... a4 {[%clk 0:00:08.1]} 42. Nc4 {[%clk 0:00:38.2]} 42...
Bf6 {[%clk 0:00:05.9]} 43. Re3+ {[%clk 0:00:36.6]} 43... Kf4 {[%clk 0:00:05.9]}
44. Ra3 {[%clk 0:00:37]} 44... Rc8+ {[%clk 0:00:05.2]} 45. Kd5 {[%clk
0:00:36.8]} 45... Be7 {[%clk 0:00:05.2]} 46. Nd6 {[%clk 0:00:36.9]} 46... Ra8
{[%clk 0:00:05.1]} 47. Ke6 {[%clk 0:00:35.2]} 47... Bf6 {[%clk 0:00:05.2]} 48.
c6 {[%clk 0:00:35.2]} 48... Bb2 {[%clk 0:00:05.6]} 49. Ra2 {[%clk 0:00:34.3]}
49... a3 {[%clk 0:00:06.1]} 50. Nc4 {[%clk 0:00:31.7]} 50... Ra6 {[%clk
0:00:03.8]} 51. Kd7 {[%clk 0:00:30.4]} 51... Ke4 {[%clk 0:00:04.2]} 52. c7
{[%clk 0:00:28.6]} 52... Ra7 {[%clk 0:00:04]} 53. Nxb2 {[%clk 0:00:26.3]} 53...
axb2 {[%clk 0:00:03.5]} 54. Rxb2 {[%clk 0:00:26.3]} 54... Kf4 {[%clk 0:00:03.4]}
55. Kc6 {[%clk 0:00:23.1]} 55... Kg4 {[%clk 0:00:04.3]} 56. c8=Q+ {[%clk
0:00:21.9]} 1-0

[Event "Early-Titled-Tuesday-Blitz-April-23-2024"]
[Site "Chess.com"]
[Date "2024.04.23"]
[Round "7"]
[White "Bilan_Danila"]
[Black "RianKapriaga"]
[Result "1-0"]
[WhiteElo "2552"]
[BlackElo "2315"]
[TimeControl "180+1"]
[EndTime "9:20:37 PDT"]
[Termination "Bilan_Danila won on time"]

1. d4 {[%clk 0:02:58.5]} 1... Nf6 {[%clk 0:02:59.7]} 2. Nf3 {[%clk 0:02:57.8]}
2... d5 {[%clk 0:02:59.1]} 3. c4 {[%clk 0:02:57.8]} 3... e6 {[%clk 0:02:59.6]}
4. Nc3 {[%clk 0:02:58.1]} 4... Be7 {[%clk 0:03:00.1]} 5. Bg5 {[%clk 0:02:58.4]}
5... h6 {[%clk 0:03:00.1]} 6. Bh4 {[%clk 0:02:58.5]} 6... O-O {[%clk 0:03:00.5]}
7. e3 {[%clk 0:02:58.6]} 7... Nbd7 {[%clk 0:03:01]} 8. Bd3 {[%clk 0:02:57.5]}
8... a6 {[%clk 0:02:59.8]} 9. c5 {[%clk 0:02:56.1]} 9... b6 {[%clk 0:02:31]} 10.
b4 {[%clk 0:02:53]} 10... a5 {[%clk 0:02:29.7]} 11. a3 {[%clk 0:02:52]} 11...
axb4 {[%clk 0:02:17.1]} 12. axb4 {[%clk 0:02:52.9]} 12... Rxa1 {[%clk
0:02:17.2]} 13. Qxa1 {[%clk 0:02:52.7]} 13... bxc5 {[%clk 0:02:17.7]} 14. bxc5
{[%clk 0:02:51.3]} 14... e5 {[%clk 0:02:16.7]} 15. c6 {[%clk 0:02:38.6]} 15...
e4 {[%clk 0:02:06.1]} 16. cxd7 {[%clk 0:02:31.7]} 16... Bxd7 {[%clk 0:02:04.6]}
17. Bxf6 {[%clk 0:02:28.4]} 17... Bxf6 {[%clk 0:02:03.5]} 18. Nxd5 {[%clk
0:02:27.3]} 18... exd3 {[%clk 0:02:02]} 19. Nxf6+ {[%clk 0:02:24.4]} 19... Qxf6
{[%clk 0:01:59.9]} 20. O-O {[%clk 0:02:21.2]} 20... Bg4 {[%clk 0:01:48.6]} 21.
Nd2 {[%clk 0:01:39.5]} 21... Be2 {[%clk 0:01:46.7]} 22. Rc1 {[%clk 0:01:37.3]}
22... Rc8 {[%clk 0:01:41.8]} 23. Qc3 {[%clk 0:01:35.4]} 23... h5 {[%clk
0:01:33.1]} 24. Nc4 {[%clk 0:01:29.9]} 24... h4 {[%clk 0:01:17.7]} 25. Ne5
{[%clk 0:01:24.7]} 25... h3 {[%clk 0:01:13.5]} 26. Nxd3 {[%clk 0:01:24.5]} 26...
hxg2 {[%clk 0:01:05.3]} 27. Nf4 {[%clk 0:01:23.1]} 27... Bf3 {[%clk 0:00:58.4]}
28. Qc5 {[%clk 0:01:17.6]} 28... c6 {[%clk 0:00:54.2]} 29. d5 {[%clk 0:01:01.8]}
29... g6 {[%clk 0:00:52.5]} 30. Qd4 {[%clk 0:00:41]} 30... Qd6 {[%clk
0:00:34.4]} 31. dxc6 {[%clk 0:00:29.5]} 31... Rxc6 {[%clk 0:00:32.5]} 32. Ra1
{[%clk 0:00:12.9]} 32... Qxd4 {[%clk 0:00:30.3]} 33. exd4 {[%clk 0:00:13.1]}
33... Rc4 {[%clk 0:00:27]} 34. Nxg2 {[%clk 0:00:13.3]} 34... Rxd4 {[%clk
0:00:23.4]} 35. Ne3 {[%clk 0:00:12.3]} 35... Kg7 {[%clk 0:00:21.7]} 36. h3
{[%clk 0:00:09.8]} 36... Rd2 {[%clk 0:00:19.6]} 37. Rc1 {[%clk 0:00:07.8]} 37...
f5 {[%clk 0:00:18.8]} 38. Rc2 {[%clk 0:00:07.1]} 38... Rd4 {[%clk 0:00:14.8]}
39. Kh2 {[%clk 0:00:07.1]} 39... Kh6 {[%clk 0:00:15]} 40. Ra2 {[%clk 0:00:05.5]}
40... Kg5 {[%clk 0:00:14.9]} 41. Ng2 {[%clk 0:00:05.1]} 41... Rd1 {[%clk
0:00:11.4]} 42. Ra3 {[%clk 0:00:04.1]} 42... Be4 {[%clk 0:00:09.9]} 43. f3
{[%clk 0:00:04.1]} 43... Bd5 {[%clk 0:00:08]} 44. h4+ {[%clk 0:00:05]} 44... Kf6
{[%clk 0:00:01.5]} 45. Kg3 {[%clk 0:00:05.9]} 1-0

[Event "Early-Titled-Tuesday-Blitz-April-23-2024"]
[Site "Chess.com"]
[Date "2024.04.23"]
[Round "7"]
[White "vladgoncharov"]
[Black "DvaHrasta"]
[Result "1-0"]
[WhiteElo "2587"]
[BlackElo "2417"]
[TimeControl "180+1"]
[EndTime "9:20:37 PDT"]
[Termination "vladgoncharov won on time"]

1. d4 {[%clk 0:03:00.9]} 1... Nf6 {[%clk 0:02:59.2]} 2. c4 {[%clk 0:02:56.9]}
2... e6 {[%clk 0:02:58.9]} 3. Nc3 {[%clk 0:02:56.4]} 3... Bb4 {[%clk 0:02:58.6]}
4. Qc2 {[%clk 0:02:56.7]} 4... d5 {[%clk 0:02:57.8]} 5. cxd5 {[%clk 0:02:53.8]}
5... exd5 {[%clk 0:02:56.8]} 6. Bg5 {[%clk 0:02:53.2]} 6... h6 {[%clk
0:02:54.1]} 7. Bh4 {[%clk 0:02:53]} 7... O-O {[%clk 0:02:50.3]} 8. e3 {[%clk
0:02:51.1]} 8... c5 {[%clk 0:02:50.2]} 9. a3 {[%clk 0:02:32.3]} 9... cxd4 {[%clk
0:02:42.4]} 10. axb4 {[%clk 0:02:31.7]} 10... dxc3 {[%clk 0:02:42.3]} 11. Qxc3
{[%clk 0:02:29.5]} 11... Nbd7 {[%clk 0:02:36]} 12. Nf3 {[%clk 0:02:23.6]} 12...
Qb6 {[%clk 0:02:31.2]} 13. Bd3 {[%clk 0:02:14.5]} 13... Ne4 {[%clk 0:02:24.4]}
14. Qa3 {[%clk 0:02:10.9]} 14... Qg6 {[%clk 0:02:02.1]} 15. O-O {[%clk
0:01:56.6]} 15... Qh5 {[%clk 0:02:01.8]} 16. Rad1 {[%clk 0:01:32.8]} 16... Ne5
{[%clk 0:01:53.9]} 17. Nxe5 {[%clk 0:01:29]} 17... Qxh4 {[%clk 0:01:45.1]} 18.
Nf3 {[%clk 0:01:22.2]} 18... Qh5 {[%clk 0:01:40.4]} 19. Nd4 {[%clk 0:01:22.3]}
19... Bd7 {[%clk 0:01:31.2]} 20. Rc1 {[%clk 0:01:15.7]} 20... Rfc8 {[%clk
0:01:24.6]} 21. Qa5 {[%clk 0:01:11]} 21... b6 {[%clk 0:01:12.9]} 22. Qa6 {[%clk
0:01:03]} 22... Rxc1 {[%clk 0:00:43.6]} 23. Rxc1 {[%clk 0:01:01.8]} 23... Qh4
{[%clk 0:00:42.8]} 24. Bxe4 {[%clk 0:00:49.5]} 24... dxe4 {[%clk 0:00:33.9]} 25.
Qb7 {[%clk 0:00:45.3]} 25... Rd8 {[%clk 0:00:33.3]} 26. Qxa7 {[%clk 0:00:42.4]}
26... Bh3 {[%clk 0:00:31.3]} 27. gxh3 {[%clk 0:00:35.1]} 27... Qxh3 {[%clk
0:00:30.3]} 28. Ne2 {[%clk 0:00:20.2]} 28... Qg4+ {[%clk 0:00:26.2]} 29. Ng3
{[%clk 0:00:20]} 29... h5 {[%clk 0:00:26.5]} 30. Qxb6 {[%clk 0:00:19.8]} 30...
Rd2 {[%clk 0:00:21.1]} 31. Qb8+ {[%clk 0:00:17.4]} 31... Kh7 {[%clk 0:00:20.6]}
32. Qf4 {[%clk 0:00:18.1]} 32... Qxf4 {[%clk 0:00:18.5]} 33. exf4 {[%clk
0:00:18.3]} 33... Rxb2 {[%clk 0:00:19.1]} 34. Rc4 {[%clk 0:00:18.5]} 34... h4
{[%clk 0:00:16.9]} 35. Nxe4 {[%clk 0:00:18]} 35... f6 {[%clk 0:00:16.8]} 36. h3
{[%clk 0:00:17.4]} 36... Kg6 {[%clk 0:00:16.3]} 37. Nc3 {[%clk 0:00:17]} 37...
Rc2 {[%clk 0:00:15]} 38. Kg2 {[%clk 0:00:17.1]} 38... Kf5 {[%clk 0:00:12.9]} 39.
b5 {[%clk 0:00:17.6]} 39... Rb2 {[%clk 0:00:12.3]} 40. Kf3 {[%clk 0:00:15.8]}
40... Rb3 {[%clk 0:00:09.8]} 41. Ke3 {[%clk 0:00:15.4]} 41... g5 {[%clk
0:00:08.7]} 42. Rc5+ {[%clk 0:00:15]} 42... Kg6 {[%clk 0:00:08.4]} 43. fxg5
{[%clk 0:00:15.3]} 43... fxg5 {[%clk 0:00:08.6]} 44. Kf3 {[%clk 0:00:14.8]}
44... Rb2 {[%clk 0:00:07.7]} 45. Ke3 {[%clk 0:00:13.8]} 45... Rb3 {[%clk
0:00:07.9]} 46. f4 {[%clk 0:00:14.1]} 46... gxf4+ {[%clk 0:00:04]} 47. Kxf4
{[%clk 0:00:13.9]} 47... Rb4+ {[%clk 0:00:04.6]} 48. Ke5 {[%clk 0:00:13.8]}
48... Kg5 {[%clk 0:00:04.1]} 49. Ne4+ {[%clk 0:00:10]} 49... Kg6 {[%clk
0:00:02.2]} 50. Rc6+ {[%clk 0:00:10.2]} 50... Kh5 {[%clk 0:00:02.1]} 51. b6
{[%clk 0:00:10.4]} 1-0

[Event "Early-Titled-Tuesday-Blitz-April-23-2024"]
[Site "Chess.com"]
[Date "2024.04.23"]
[Round "7"]
[White "ubdip"]
[Black "Statham_01"]
[Result "0-1"]
[WhiteElo "2392"]
[BlackElo "2575"]
[TimeControl "180+1"]
[EndTime "9:20:38 PDT"]
[Termination "Statham_01 won by checkmate"]

1. e4 {[%clk 0:03:00.9]} 1... c5 {[%clk 0:03:00]} 2. Nf3 {[%clk 0:03:00.8]} 2...
d6 {[%clk 0:03:00.7]} 3. d4 {[%clk 0:03:00.6]} 3... cxd4 {[%clk 0:03:01.6]} 4.
Qxd4 {[%clk 0:03:01.3]} 4... Nf6 {[%clk 0:03:02.5]} 5. Be2 {[%clk 0:03:00]} 5...
Nc6 {[%clk 0:03:02.8]} 6. Qe3 {[%clk 0:03:00.4]} 6... g6 {[%clk 0:03:03.2]} 7.
O-O {[%clk 0:02:59.5]} 7... Bg7 {[%clk 0:03:03.4]} 8. Rd1 {[%clk 0:02:58.3]}
8... O-O {[%clk 0:03:03.1]} 9. h3 {[%clk 0:02:58.4]} 9... Be6 {[%clk 0:02:55.5]}
10. c4 {[%clk 0:02:52.4]} 10... Nd7 {[%clk 0:02:51.5]} 11. Nc3 {[%clk
0:02:49.7]} 11... a5 {[%clk 0:02:50.4]} 12. Rb1 {[%clk 0:02:42.2]} 12... Nc5
{[%clk 0:02:48.9]} 13. Nd5 {[%clk 0:02:28.8]} 13... a4 {[%clk 0:02:32.4]} 14. b4
{[%clk 0:02:21.9]} 14... axb3 {[%clk 0:02:33.3]} 15. axb3 {[%clk 0:02:22.2]}
15... Bxd5 {[%clk 0:02:32.3]} 16. exd5 {[%clk 0:02:19.1]} 16... Nb4 {[%clk
0:02:29.2]} 17. Bb2 {[%clk 0:02:06.4]} 17... Nc2 {[%clk 0:02:04.3]} 18. Qc1
{[%clk 0:01:48.3]} 18... Bxb2 {[%clk 0:01:53.9]} 19. Rxb2 {[%clk 0:01:33.1]}
19... Nb4 {[%clk 0:01:54]} 20. Qh6 {[%clk 0:01:30.3]} 20... f6 {[%clk
0:01:54.2]} 21. Nd4 {[%clk 0:01:28.3]} 21... Rf7 {[%clk 0:01:33.6]} 22. Bg4
{[%clk 0:01:26.7]} 22... f5 {[%clk 0:01:27.3]} 23. Be2 {[%clk 0:01:21.8]} 23...
Qf8 {[%clk 0:01:26.4]} 24. Qe3 {[%clk 0:01:14.3]} 24... f4 {[%clk 0:01:13.6]}
25. Qd2 {[%clk 0:01:09.5]} 25... Nba6 {[%clk 0:01:04.3]} 26. Bg4 {[%clk
0:01:07.5]} 26... Nc7 {[%clk 0:01:01.3]} 27. Re1 {[%clk 0:00:59.8]} 27... Qg7
{[%clk 0:00:48.9]} 28. Kh2 {[%clk 0:00:46.1]} 28... h5 {[%clk 0:00:47.8]} 29.
Bd1 {[%clk 0:00:36.1]} 29... Rf6 {[%clk 0:00:30.8]} 30. Bc2 {[%clk 0:00:33]}
30... Nd7 {[%clk 0:00:29]} 31. Nf3 {[%clk 0:00:27.6]} 31... Raf8 {[%clk
0:00:27.4]} 32. Qe2 {[%clk 0:00:20.3]} 32... e5 {[%clk 0:00:24.1]} 33. dxe6
{[%clk 0:00:19.3]} 33... Rxe6 {[%clk 0:00:24.6]} 34. Qd2 {[%clk 0:00:19.9]}
34... Rxe1 {[%clk 0:00:23.6]} 35. Qxe1 {[%clk 0:00:20.8]} 35... Qxb2 {[%clk
0:00:23.9]} 36. Bxg6 {[%clk 0:00:20.4]} 36... Qg7 {[%clk 0:00:23.5]} 37. Bxh5
{[%clk 0:00:20.5]} 37... Ne5 {[%clk 0:00:23.4]} 38. Qe4 {[%clk 0:00:19.5]} 38...
Nxf3+ {[%clk 0:00:22.3]} 39. Bxf3 {[%clk 0:00:18.8]} 39... Ne6 {[%clk
0:00:20.9]} 40. Qd5 {[%clk 0:00:18]} 40... Qe5 {[%clk 0:00:20.1]} 41. Qxb7
{[%clk 0:00:17.7]} 41... Ng5 {[%clk 0:00:16.6]} 42. Bd5+ {[%clk 0:00:16.7]}
42... Kh8 {[%clk 0:00:17.1]} 43. h4 {[%clk 0:00:16.8]} 43... Nh7 {[%clk
0:00:12.6]} 44. Qd7 {[%clk 0:00:15.2]} 44... Nf6 {[%clk 0:00:11.3]} 45. Qh3
{[%clk 0:00:14.3]} 45... f3+ {[%clk 0:00:11.9]} 46. g3 {[%clk 0:00:13.8]} 46...
Qd4 {[%clk 0:00:09.2]} 47. Kg1 {[%clk 0:00:13]} 47... Nxd5 {[%clk 0:00:08.8]}
48. cxd5 {[%clk 0:00:12.1]} 48... Qd1+ {[%clk 0:00:09.4]} 49. Kh2 {[%clk
0:00:11.9]} 49... Qe2 {[%clk 0:00:09.6]} 50. Kg1 {[%clk 0:00:11.9]} 50... Qe1+
{[%clk 0:00:09.8]} 51. Kh2 {[%clk 0:00:12.1]} 51... Qxf2+ {[%clk 0:00:09.6]} 52.
Kh1 {[%clk 0:00:13]} 52... Re8 {[%clk 0:00:09.2]} 53. Qe6 {[%clk 0:00:10.7]}
53... Qg2# {[%clk 0:00:08.1]} 0-1